bitfinex/quotes_SOLUSD_20220101
["timestamp","ask_amount","ask_price","bid_price","bid_amount"]
[1641064443442,12.47465013,176.25,176.16,8.514]
[1641064443645,12.47465013,176.25,176.17,1.2281]
[1641064443846,12.47465013,176.25,176.17,9.7413]
[1641064444247,9.2474,176.25,176.17,9.7413]
[1641064445048,8.9874,176.25,176.17,9.7413]
[1641064446348,8.9874,176.25,176.17,10.2413]
[1641064446549,9.2474,176.25,176.17,10.2413]
[1641064446748,8.9874,176.25,176.17,10.2413]
[1641064448050,8.9874,176.25,176.15,28.3735]
[1641064448051,9.2474,176.25,176.12,36.7084]
[1641064448655,10.67409368,176.25,176.12,8.33]
[1641064448852,13.90134381,176.25,176.12,8.33]
[1641064449454,13.90134381,176.25,176.13,1.2278]
[1641064449653,20.98845013,176.25,176.15,8.5146]
[1641064449852,20.98845013,176.25,176.13,1.2278]
[1641064450054,1.42669368,176.24,176.13,1.2278]
[1641064450451,2.18669368,176.24,176.13,1.2278]
[1641064450854,3.98725013,176.24,176.13,1.2278]
[1641064451055,8.5149,176.21,176.13,9.7433]
[1641064451457,9.2749,176.21,176.13,9.7433]
[1641064455360,9.0149,176.21,176.13,9.7433]
[1641064456361,12.24215013,176.21,176.13,9.7433]
[1641064456860,12.50215013,176.21,176.13,9.7433]
[1641064457462,12.50215013,176.21,176.13,1.2278]
[1641064458762,12.50215013,176.21,176.13,9.7434]
[1641064464693,12.24215013,176.21,176.13,9.7434]
[1641064465396,3.72725013,176.21,176.13,9.7434]
[1641064465596,0.5,176.21,176.13,10.2434]
[1641064465996,12.24195013,176.22,176.13,10.2434]
[1641064466697,9.2747,176.22,176.13,10.2434]
[1641064467398,9.2747,176.22,176.13,9.7434]
[1641064467600,12.50195013,176.22,176.13,9.7434]
[1641064470502,12.50195013,176.22,176.13,10.2434]
[1641064470905,9.2747,176.22,176.13,10.2434]
[1641064477208,9.2747,176.22,176.13,9.7434]
[1641064477608,12.50195013,176.22,176.13,9.7434]
[1641064480110,6.45620298,176.21,176.13,9.7434]
[1641064480312,14.97120298,176.21,176.13,9.7434]
[1641064480513,15.73120298,176.21,176.13,9.7434]
[1641064480713,15.23120298,176.21,176.13,9.7434]
[1641064481914,9.275,176.21,176.13,9.7434]
[1641064487621,9.015,176.21,176.13,9.7434]
[1641064487822,11.74175013,176.22,176.13,10.2434]
[1641064488021,11.74175013,176.22,176.13,9.7434]
[1641064488422,8.5145,176.22,176.13,9.7434]
[1641064488825,9.0145,176.22,176.13,9.7434]
[1641064489023,8.7745,176.22,176.13,9.7434]
[1641064489225,8.7745,176.22,176.13,10.2434]
[1641064489424,0.26,176.22,176.13,10.2434]
[1641064489826,1.61387695,176.2,176.13,10.2434]
[1641064490825,1.61387695,176.21,176.13,10.2434]
[1641064491236,1.87387695,176.21,176.13,10.2434]
[1641064491725,1.61387695,176.21,176.13,10.2434]
[1641064492327,1.61387695,176.21,176.13,10.5034]
[1641064493132,1.87387695,176.21,176.14,8.33]
[1641064493330,1.87387695,176.21,176.15,17.39459098]
[1641064493529,1.87387695,176.21,176.17,8.5123]
[1641064493957,1.87387695,176.21,176.17,9.0123]
[1641064495559,1.87387695,176.21,176.17,8.5123]
[1641064495756,1.87387695,176.21,176.17,9.0123]
[1641064499062,0.26,176.21,176.17,9.0123]
[1641064499460,1.87387695,176.23,176.17,9.0123]
[1641064499862,1.61387695,176.23,176.17,9.0123]
[1641064500461,1.61387695,176.24,176.17,9.0123]
[1641064501568,0.26,176.24,176.17,9.0123]
[1641064501765,0.26,176.24,176.18,1.2462]
[1641064501966,2.37387695,176.25,176.2,8.5119]
[1641064502767,1.61387695,176.24,176.2,8.5119]
[1641064502968,1.87387695,176.24,176.2,8.5119]
[1641064503468,0.26,176.24,176.2,8.5119]
[1641064503670,2.11387695,176.25,176.2,8.5119]
[1641064503870,2.11387695,176.25,176.2,9.0119]
[1641064504072,1.61387695,176.25,176.2,9.0119]
[1641064504271,0.53917695,176.25,176.2,17.6019]
[1641064504575,0.53917695,176.25,176.2,19.02859368]
[1641064504776,0.53917695,176.25,176.2,17.6019]
[1641064505373,3.22725013,176.29,176.2,17.6019]
[1641064505374,3.72725013,176.29,176.2,17.3419]
[1641064505776,3.22725013,176.29,176.22,22.62782221]
[1641064505977,3.22725013,176.29,176.22,31.13872221]
[1641064505978,0.26,176.29,176.22,31.13872221]
[1641064506376,9.2709,176.3,176.22,31.13872221]
[1641064506580,9.2709,176.3,176.22,39.46872221]
[1641064506776,9.2709,176.3,176.22,31.13872221]
[1641064506777,0.76,176.3,176.22,31.13872221]
[1641064506975,3.22725013,176.3,176.22,39.96872221]
[1641064507484,3.98725013,176.3,176.24,8.5102]
[1641064511494,3.98725013,176.3,176.24,8.5302]
[1641064513115,6.45325911,176.29,176.24,8.5302]
[1641064513616,6.71325911,176.29,176.24,8.5302]
[1641064514219,0.26,176.29,176.24,8.5302]
[1641064514417,3.98725013,176.3,176.24,8.5302]
[1641064514920,6.45328337,176.29,176.24,8.5302]
[1641064515117,6.71328337,176.29,176.24,8.5302]
[1641064515318,0.26,176.29,176.24,8.5302]
[1641064515720,3.98725013,176.3,176.24,8.5302]
[1641064517521,3.98725013,176.3,176.24,9.0302]
[1641064517923,3.22725013,176.3,176.24,9.0302]
[1641064518123,3.22725013,176.3,176.24,17.3602]
[1641064518323,3.22725013,176.31,176.24,17.3602]
[1641064518924,3.22725013,176.32,176.24,17.3602]
[1641064519423,3.22725013,176.33,176.24,17.3602]
[1641064519624,3.22725013,176.33,176.29,8.5079]
[1641064519824,3.72725013,176.33,176.29,8.5079]
[1641064520024,8.4125,176.35,176.29,8.5079]
[1641064520427,9.1725,176.35,176.29,8.5079]
[1641064521326,9.1725,176.35,176.29,8.5279]
[1641064521830,9.1725,176.35,176.29,25.92249098]
[1641064522127,0.76,176.35,176.29,25.92249098]
[1641064522626,9.268,176.36,176.29,25.92249098]
[1641064523832,9.268,176.36,176.29,0.0079]
[1641064524030,1.42669368,176.35,176.2,8.33]
[1641064524432,8.5119,176.28,176.2,8.33]
[1641064524832,20.53398583,176.28,176.18,25.92453399]
[1641064525436,20.53398583,176.28,176.18,1.2835]
[1641064525631,1.42669368,176.27,176.18,1.2835]
[1641064525929,8.5138,176.23,176.18,1.2835]
[1641064526130,8.7738,176.23,176.18,1.2835]
[1641064526331,9.2738,176.23,176.18,1.2835]
[1641064527333,9.2738,176.23,176.16,29.17506185]
[1641064531862,9.2738,176.23,176.16,1.232]
[1641064532068,9.2738,176.23,176.15,1.2754]
[1641064532464,9.2738,176.23,176.12,80.9275]
[1641064532666,9.2738,176.23,176.12,81.4275]
[1641064532864,9.2738,176.23,176.12,29.24654728]
[1641064533065,9.2738,176.23,176.12,28.74654728]
[1641064535164,9.683379,176.22,176.12,28.74654728]
[1641064535364,8.5169,176.17,176.12,28.74654728]
[1641064535564,8.7769,176.17,176.12,28.74654728]
[1641064535764,9.2769,176.17,176.12,28.74654728]
[1641064536564,0.5,176.17,176.12,28.74654728]
[1641064536965,3.22725013,176.22,176.12,37.57654728]
[1641064537168,3.72725013,176.22,176.12,37.57654728]
[1641064537365,3.72725013,176.22,176.13,1.2525]
[1641064537566,0.5,176.22,176.13,1.2525]
[1641064537768,38.13706812,176.23,176.13,1.2525]
[1641064537968,55.24106812,176.23,176.06,8.82596323]
[1641064538169,3.6,176.1,175.98,2.6447]
[1641064538372,4.1,176.1,175.98,2.6447]
[1641064538569,4.1,176.1,175.98,8.33]
[1641064538570,4.36,176.1,175.98,8.33]
[1641064538974,15.2567688,176.1,175.99,29.92779238]
[1641064539376,8.522,176.06,175.99,29.92779238]
[1641064539575,8.782,176.06,175.99,29.92779238]
[1641064539778,9.282,176.06,175.99,29.92779238]
[1641064540378,38.25010424,176.06,175.99,29.92779238]
[1641064541383,38.25010424,176.06,175.94,9.6655]
[1641064541781,38.25010424,176.06,175.94,8.33]
[1641064542487,38.25010424,176.06,175.95,23.08994576]
[1641064542885,1.42669368,176.05,175.95,23.08994576]
[1641064543087,1.68669368,176.05,175.95,23.08994576]
[1641064543287,30.60389368,176.05,175.95,23.08994576]
[1641064544086,29.1772,176.05,175.95,23.08994576]
[1641064544287,0.5,176.05,175.95,23.08994576]
[1641064544486,3.22725013,176.06,175.95,23.58994576]
[1641064544886,3.22725013,176.1,175.95,31.91994576]
[1641064545088,3.22725013,176.1,175.95,32.17994576]
[1641064545287,3.22725013,176.1,175.95,40.70384576]
[1641064545488,3.22725013,176.1,175.96,1.42669368]
[1641064545687,8.33,176.19,175.97,8.33]
[1641064545887,8.83,176.19,175.97,8.83]
[1641064546087,10.25669368,176.19,175.97,8.83]
[1641064546489,8.5192,176.14,176.05,8.5192]
[1641064546689,23.5139653,176.18,176.05,8.5192]
[1641064546988,0.76,176.14,176.05,8.5192]
[1641064547390,0.26,176.14,176.05,8.5192]
[1641064547593,8.5196,176.13,176.05,8.5192]
[1641064547992,9.2796,176.13,176.05,8.5192]
[1641064553203,9.2796,176.13,176.05,9.0192]
[1641064553401,9.2796,176.13,176.05,8.5192]
[1641064554003,9.2796,176.13,176.03,25.45216743]
[1641064554502,9.2796,176.13,176.03,16.93246743]
[1641064555708,12.50685013,176.13,176.03,16.93246743]
[1641064555909,12.50685013,176.13,176.02,8.5206]
[1641064556409,6.45978039,176.12,176.02,8.5206]
[1641064556609,6.71978039,176.12,176.02,8.5206]
[1641064556808,7.21978039,176.12,175.98,39.4016]
[1641064557108,13.31362149,176.11,176.0,8.5213]
[1641064557529,14.07362149,176.11,176.0,8.5213]
[1641064557728,8.5215,176.08,176.0,8.5213]
[1641064557930,0.5,176.08,176.0,8.5213]
[1641064558129,0.76,176.08,176.0,8.5213]
[1641064558728,17.30087162,176.11,176.0,8.5213]
[1641064559128,8.5213,176.09,176.0,8.5213]
[1641064559528,9.2813,176.09,176.0,8.5213]
[1641064560432,0.26,176.09,176.0,8.5213]
[1641064560633,0.76,176.09,176.0,8.5213]
[1641064560829,0.5,176.09,176.0,8.5213]
[1641064561230,22.59392149,176.11,176.0,8.5213]
[1641064562031,0.5,176.11,176.01,8.33]
[1641064562433,3.72725013,176.13,176.01,8.83]
[1641064563034,0.5,176.13,176.01,8.83]
[1641064563234,8.5191,176.13,176.01,8.33]
[1641064563533,9.2791,176.13,176.01,8.33]
[1641064564133,6.45961666,176.12,176.01,8.33]
[1641064564334,8.5214,176.09,176.01,16.8512]
[1641064564536,5.15955217,176.08,176.01,16.8512]
[1641064564933,5.91955217,176.08,176.01,8.33]
[1641064565136,5.91955217,176.08,175.99,29.68623854]
[1641064565334,5.91955217,176.08,175.98,11.0001]
[1641064565537,14.44125217,176.08,176.0,8.5217]
[1641064565737,14.44125217,176.08,175.98,2.6701]
[1641064567736,14.44125217,176.08,175.98,11.1924]
[1641064569940,14.44125217,176.08,175.98,2.6701]
[1641064571942,14.44125217,176.08,175.98,11.1928]
[1641064582185,14.44125217,176.08,175.98,2.6701]
[1641064584090,14.44125217,176.08,175.98,11.1928]
[1641064586189,14.44125217,176.08,175.98,11.6928]
[1641064587790,14.18125217,176.08,175.98,11.6928]
[1641064590498,14.44125217,176.08,175.98,11.6928]
[1641064590895,14.44125217,176.08,175.98,11.1928]
[1641064593501,14.18125217,176.08,175.98,11.1928]
[1641064593900,14.18125217,176.08,175.98,11.6928]
[1641064595025,14.44125217,176.08,175.98,11.1928]
[1641064596626,14.44125217,176.08,175.98,2.6701]
[1641064600835,14.18125217,176.08,175.98,2.6701]
[1641064601034,14.18125217,176.08,175.98,11.193]
[1641064602033,14.44125217,176.08,175.98,11.193]
[1641064602435,14.18125217,176.08,175.98,11.193]
[1641064604539,14.44125217,176.08,175.98,11.193]
[1641064607041,9.0217,176.08,175.98,11.193]
[1641064607443,11.85495013,176.09,175.98,20.023]
[1641064607841,3.22725013,176.09,175.98,21.44969368]
[1641064608041,3.22725013,176.09,175.98,21.70969368]
[1641064608444,36.40185094,176.16,175.98,21.70969368]
[1641064608445,3.22725013,176.14,175.98,21.70969368]
[1641064608644,6.18694193,176.14,175.98,21.70969368]
[1641064608843,6.68694193,176.14,175.98,21.70969368]
[1641064609242,3.4596918,176.14,175.98,21.70969368]
[1641064611045,3.7196918,176.14,175.98,21.70969368]
[1641064611247,3.7196918,176.14,175.98,125.83969368]
[1641064611747,12.2384918,176.14,175.98,125.57969368]
[1641064611946,12.2384918,176.14,175.98,124.153]
[1641064612350,6.45918922,176.13,175.99,75.421]
[1641064612551,6.71918922,176.13,176.01,8.5211]
[1641064612750,7.21918922,176.13,175.99,75.921]
[1641064612948,3.22725013,176.12,175.99,75.921]
[1641064613449,3.98725013,176.12,175.99,75.921]
[1641064613682,8.76593585,176.09,176.0,8.33]
[1641064613879,9.26593585,176.09,176.0,8.33]
[1641064614079,9.52593585,176.09,176.0,8.33]
[1641064614280,9.52593585,176.09,176.0,16.8514]
[1641064615579,8.5213,176.08,176.0,8.5214]
[1641064615981,9.2813,176.08,176.0,8.5214]
[1641064616783,0.76,176.08,176.0,16.8514]
[1641064617082,3.98725013,176.11,176.0,16.8514]
[1641064617688,0.76,176.11,176.0,16.8514]
[1641064617883,0.26,176.11,176.0,16.8514]
[1641064618083,31.302551,176.12,176.0,16.8514]
[1641064618583,8.5201,176.11,176.0,16.8514]
[1641064618884,9.0201,176.11,176.0,16.8514]
[1641064619084,9.2801,176.11,176.0,18.1645]
[1641064619684,9.2801,176.11,176.0,18.6645]
[1641064623888,0.76,176.11,176.0,18.6645]
[1641064624088,0.5,176.12,176.0,18.6645]
[1641064624286,0.5,176.12,176.0,18.9245]
[1641064624487,3.72725013,176.13,176.0,18.6645]
[1641064624687,1.53876405,176.11,176.0,18.6645]
[1641064624890,2.03876405,176.11,176.0,18.6645]
[1641064625490,2.29876405,176.11,176.0,18.6645]
[1641064626690,1.53876405,176.1,176.0,18.6645]
[1641064626991,2.29876405,176.1,176.0,18.6645]
[1641064628689,0.76,176.1,176.0,18.6645]
[1641064628891,0.26,176.1,176.0,18.6645]
[1641064629090,2.29876405,176.11,176.0,18.9245]
[1641064629790,2.29876405,176.11,176.0,18.6645]
[1641064630489,1.53876405,176.1,176.0,18.6645]
[1641064630891,2.29876405,176.1,176.0,18.6645]
[1641064631093,0.76,176.1,176.0,18.6645]
[1641064631493,2.29876405,176.11,176.0,18.6645]
[1641064631692,2.29876405,176.11,176.0,18.9245]
[1641064633596,0.76,176.11,176.0,18.9245]
[1641064633997,32.22426332,176.12,176.0,18.9245]
[1641064635999,2.29876405,176.12,176.0,18.9245]
[1641064637901,2.29876405,176.12,176.0,18.6645]
[1641064638301,2.29876405,176.12,176.0,18.1645]
[1641064638900,0.76,176.12,176.0,18.1645]
[1641064639098,0.5,176.12,176.0,18.1645]
[1641064639300,30.25415345,176.13,176.0,18.1645]
[1641064639501,30.25415345,176.13,176.0,18.6645]
[1641064640003,30.25415345,176.13,176.0,97.6043]
[1641064640600,38.77435345,176.13,176.0,97.6043]
[1641064642501,30.25415345,176.13,176.0,97.6043]
[1641064644603,38.77435345,176.13,176.0,97.6043]
[1641064645409,1.53876405,176.12,176.0,97.6043]
[1641064645603,1.79876405,176.12,176.0,97.6043]
[1641064645804,2.29876405,176.12,176.0,97.6043]
[1641064646204,2.03876405,176.12,176.0,97.6043]
[1641064646403,0.5,176.12,176.0,97.6043]
[1641064646805,29.99415345,176.13,176.0,97.6043]
[1641064647006,1.53876405,176.11,176.0,97.6043]
[1641064647430,2.03876405,176.11,176.0,97.6043]
[1641064648735,1.53876405,176.1,176.0,97.6043]
[1641064648933,2.03876405,176.1,176.0,97.6043]
[1641064649135,2.29876405,176.1,176.0,97.6043]
[1641064651538,0.76,176.1,176.0,97.6043]
[1641064651838,0.26,176.1,176.0,97.6043]
[1641064652039,2.29876405,176.11,176.0,97.6043]
[1641064652238,1.53876405,176.1,176.0,97.6043]
[1641064652537,2.29876405,176.1,176.0,97.6043]
[1641064656242,1.53876405,176.09,176.0,97.6043]
[1641064656445,2.03876405,176.09,176.0,97.6043]
[1641064656643,2.29876405,176.09,176.0,97.6043]
[1641064657845,0.76,176.09,176.0,97.6043]
[1641064658147,0.5,176.09,176.0,97.6043]
[1641064658347,2.03876405,176.1,176.0,97.6043]
[1641064660552,2.29876405,176.1,176.0,97.6043]
[1641064660749,0.76,176.1,176.0,97.6043]
[1641064660949,0.26,176.1,176.0,97.6043]
[1641064661151,2.29876405,176.12,176.0,97.6043]
[1641064662552,1.53876405,176.11,176.0,97.6043]
[1641064662954,2.29876405,176.11,176.0,97.6043]
[1641064665656,0.76,176.11,176.0,97.6043]
[1641064665855,0.26,176.11,176.0,97.6043]
[1641064666059,1.53876405,176.11,176.0,97.6043]
[1641064666258,2.29876405,176.11,176.0,97.6043]
[1641064667857,0.76,176.11,176.0,97.6043]
[1641064668059,0.5,176.11,176.0,97.6043]
[1641064668460,2.29876405,176.12,176.0,97.6043]
[1641064668864,1.53876405,176.11,176.0,97.6043]
[1641064669061,1.79876405,176.11,176.0,97.6043]
[1641064669360,2.29876405,176.11,176.0,97.6043]
[1641064669563,1.53876405,176.1,176.0,97.6043]
[1641064670061,2.29876405,176.1,176.0,97.6043]
[1641064671062,1.53876405,176.09,176.0,97.6043]
[1641064671465,2.29876405,176.09,176.0,97.6043]
[1641064671663,0.76,176.09,176.0,97.6043]
[1641064671863,0.26,176.09,176.0,97.6043]
[1641064672063,2.29876405,176.1,176.0,97.6043]
[1641064673682,2.29876405,176.1,176.0,18.6645]
[1641064673883,1.53876405,176.09,176.0,18.6645]
[1641064674086,1.79876405,176.09,176.0,18.6645]
[1641064674283,2.29876405,176.09,176.0,18.6645]
[1641064674484,1.53876405,176.08,176.0,18.6645]
[1641064674884,2.29876405,176.08,176.0,18.6645]
[1641064676188,13.44162388,176.08,176.0,18.6645]
[1641064676790,14.98038793,176.08,176.0,18.6645]
[1641064677086,14.98038793,176.08,176.0,17.3514]
[1641064677486,1.53876405,176.06,176.0,17.3514]
[1641064677886,1.79876405,176.06,176.0,17.3514]
[1641064679089,1.79876405,176.06,176.0,9.0214]
[1641064682493,1.53876405,176.06,176.0,9.0214]
[1641064683491,1.53876405,176.07,176.0,9.0214]
[1641064683894,1.79876405,176.07,176.0,9.0214]
[1641064684093,1.53876405,176.06,176.0,9.0214]
[1641064685497,1.79876405,176.06,176.0,9.0214]
[1641064687202,1.79876405,176.06,176.0,8.5214]
[1641064687601,2.29876405,176.06,176.0,8.5214]
[1641064687805,2.29876405,176.06,175.96,29.6692]
[1641064688002,2.29876405,176.06,175.98,8.5224]
[1641064688604,1.53876405,176.04,175.98,8.5224]
[1641064689108,1.79876405,176.04,175.98,8.5224]
[1641064689303,2.29876405,176.04,175.98,8.5224]
[1641064692209,1.79876405,176.04,175.98,8.5224]
[1641064692607,2.29876405,176.04,175.98,8.5224]
[1641064695513,2.29876405,176.04,175.97,8.5232]
[1641064695913,2.29876405,176.04,175.95,26.62845127]
[1641064696415,2.29876405,176.04,175.95,27.12845127]
[1641064696614,1.53876405,176.03,175.95,0.5]
[1641064696914,2.03876405,176.03,175.94,8.83]
[1641064697114,2.29876405,176.03,175.96,8.5237]
[1641064698515,0.76,176.03,175.96,8.5237]
[1641064698915,9.2838,176.05,175.96,8.5237]
[1641064700939,10.82256405,176.05,175.96,8.5237]
[1641064703240,2.03876405,176.05,175.96,8.5237]
[1641064703639,0.5,176.05,175.96,8.5237]
[1641064703842,2.03876405,176.06,175.96,8.5237]
[1641064704242,1.53876405,176.05,175.96,8.5237]
[1641064704443,2.03876405,176.05,175.96,8.5237]
[1641064704743,2.29876405,176.05,175.96,8.5237]
[1641064704943,2.29876405,176.05,175.96,9.0237]
[1641064705142,2.03876405,176.05,175.96,9.0237]
[1641064705543,0.5,176.05,175.96,9.0237]
[1641064705744,0.5,176.05,175.97,1.2334]
[1641064705943,2.03876405,176.06,175.98,8.5228]
[1641064706542,2.29876405,176.06,175.98,8.5228]
[1641064707448,10.82186405,176.06,175.98,8.5228]
[1641064709246,10.82186405,176.06,175.97,1.2334]
[1641064709449,1.53876405,176.05,175.97,1.2334]
[1641064709647,10.06256405,176.05,175.97,1.2334]
[1641064709847,10.82256405,176.05,175.97,1.2334]
[1641064711851,1.53876405,176.03,175.97,1.2334]
[1641064712148,1.79876405,176.03,175.97,1.2334]
[1641064712349,2.29876405,176.03,175.97,1.2334]
[1641064713149,1.79876405,176.03,175.97,1.2334]
[1641064713349,2.29876405,176.03,175.97,1.2334]
[1641064716456,2.29876405,176.03,175.96,8.5234]
[1641064717960,1.53876405,176.02,175.96,8.5234]
[1641064718359,24.14596291,176.01,175.96,8.5234]
[1641064718558,24.40596291,176.01,175.96,8.5234]
[1641064723366,0.26,176.01,175.96,8.5234]
[1641064723563,2.29876405,176.03,175.96,8.5234]
[1641064724165,10.82306405,176.03,175.95,9.8004]
[1641064724365,26.84341116,176.02,175.95,10.3004]
[1641064724565,27.10341116,176.02,175.95,10.3004]
[1641064724766,27.60341116,176.02,175.95,10.3004]
[1641064725371,0.76,176.02,175.95,10.3004]
[1641064725568,2.29876405,176.03,175.95,10.3004]
[1641064725769,1.79876405,176.03,175.95,10.3004]
[1641064726590,0.26,176.03,175.95,10.3004]
[1641064726990,2.29876405,176.04,175.95,10.3004]
[1641064728892,1.53876405,176.03,175.95,10.3004]
[1641064729092,1.79876405,176.03,175.95,10.3004]
[1641064729292,2.29876405,176.03,175.95,10.3004]
[1641064729993,1.79876405,176.03,175.95,10.3004]
[1641064730195,2.29876405,176.03,175.95,10.3004]
[1641064731493,1.79876405,176.03,175.95,10.3004]
[1641064731692,2.29876405,176.03,175.95,10.3004]
[1641064733293,1.53876405,176.02,175.95,10.3004]
[1641064733594,1.79876405,176.02,175.95,10.3004]
[1641064734099,0.26,176.02,175.95,10.3004]
[1641064734597,1.79876405,176.03,175.95,10.3004]
[1641064735402,2.29876405,176.03,175.95,10.3004]
[1641064738507,1.79876405,176.03,175.95,10.3004]
[1641064738907,2.29876405,176.03,175.95,10.3004]
[1641064740509,1.79876405,176.03,175.95,10.3004]
[1641064741312,2.29876405,176.03,175.95,10.3004]
[1641064744522,1.79876405,176.03,175.95,10.3004]
[1641064745141,0.26,176.03,175.95,10.3004]
[1641064745542,2.29876405,176.04,175.95,10.3004]
[1641064746642,1.53876405,176.03,175.95,10.3004]
[1641064747042,1.79876405,176.03,175.95,10.3004]
[1641064751252,2.29876405,176.03,175.95,10.3004]
[1641064752350,1.79876405,176.03,175.95,10.3004]
[1641064755761,2.29876405,176.03,175.95,10.3004]
[1641064755961,1.79876405,176.03,175.95,10.3004]
[1641064757864,0.26,176.03,175.95,10.3004]
[1641064758062,1.79876405,176.04,175.95,10.3004]
[1641064758861,1.53876405,176.03,175.95,10.3004]
[1641064759064,1.79876405,176.03,175.95,10.3004]
[1641064759264,0.26,176.03,175.95,10.3004]
[1641064759664,1.79876405,176.04,175.95,10.3004]
[1641064761666,2.29876405,176.04,175.95,10.3004]
[1641064761862,1.79876405,176.04,175.95,10.3004]
[1641064762764,2.29876405,176.04,175.95,10.3004]
[1641064762965,1.79876405,176.04,175.95,10.3004]
[1641064763965,2.29876405,176.04,175.95,10.3004]
[1641064764266,1.79876405,176.04,175.95,10.3004]
[1641064764666,1.53876405,176.04,175.95,10.3004]
[1641064764871,1.53876405,176.04,175.96,8.33]
[1641064765067,1.53876405,176.05,175.96,8.33]
[1641064765267,1.53876405,176.05,176.0,8.5213]
[1641064765470,1.53876405,176.05,176.0,8.0213]
[1641064765869,1.53876405,176.05,176.01,10.83092294]
[1641064766471,1.53876405,176.06,176.01,10.83092294]
[1641064766671,1.53876405,176.06,176.01,19.35212294]
[1641064766878,2.03876405,176.06,176.01,19.35212294]
[1641064767978,2.29876405,176.06,176.01,19.35212294]
[1641064768788,2.03876405,176.06,176.01,19.35212294]
[1641064769580,1.53876405,176.07,176.01,19.85212294]
[1641064769779,1.53876405,176.07,176.01,28.18212294]
[1641064769978,1.53876405,176.07,176.01,27.68212294]
[1641064770179,1.53876405,176.07,176.01,28.18212294]
[1641064770379,1.53876405,176.07,176.01,29.46292294]
[1641064770881,1.53876405,176.09,176.01,29.46292294]
[1641064771083,1.53876405,176.09,176.01,31.14961662]
[1641064771715,1.53876405,176.14,176.01,31.14961662]
[1641064772612,1.79876405,176.14,176.01,31.14961662]
[1641064773912,1.79876405,176.14,176.01,103.70811662]
[1641064778119,1.53876405,176.13,176.01,103.70811662]
[1641064778620,1.79876405,176.13,176.01,103.70811662]
[1641064778818,1.79876405,176.13,176.01,102.94811662]
[1641064779019,2.29876405,176.13,176.01,102.94811662]
[1641064779220,2.29876405,176.13,176.01,101.52142294]
[1641064779635,8.03576405,176.13,176.01,90.6905]
[1641064779821,1.53876405,176.1,176.01,90.6905]
[1641064780022,1.79876405,176.1,176.01,90.6905]
[1641064780221,2.29876405,176.1,176.01,91.1905]
[1641064780623,7.29557948,176.09,176.01,91.1905]
[1641064780923,9.33434353,176.09,176.01,91.1905]
[1641064781122,9.59434353,176.09,176.01,91.1905]
[1641064782023,9.09434353,176.09,176.01,91.1905]
[1641064782447,9.59434353,176.09,176.01,91.1905]
[1641064782625,9.09434353,176.09,176.01,91.1905]
[1641064782926,7.55557948,176.09,176.01,91.1905]
[1641064784629,0.26,176.09,176.01,91.1905]
[1641064784830,1.53876405,176.14,176.01,91.1905]
[1641064785028,0.5,176.14,176.01,92.61719368]
[1641064785228,89.81276405,176.15,176.01,92.61719368]
[1641064785830,88.274,176.15,176.01,92.61719368]
[1641064786030,88.774,176.15,176.01,92.61719368]
[1641064786631,89.034,176.15,176.01,92.61719368]
[1641064787435,90.57276405,176.15,176.01,92.61719368]
[1641064787634,99.09136405,176.15,176.01,92.61719368]
[1641064788033,90.57276405,176.15,176.01,92.61719368]
[1641064789034,99.09126405,176.15,176.01,91.1905]
[1641064789433,1.53876405,176.11,176.01,91.1905]
[1641064789833,1.79876405,176.11,176.01,91.1905]
[1641064790059,2.29876405,176.11,176.01,91.1905]
[1641064790659,1.53876405,176.1,176.01,91.1905]
[1641064791058,1.79876405,176.1,176.01,91.1905]
[1641064796862,12.24403232,176.09,176.01,91.1905]
[1641064797061,12.50403232,176.09,176.01,91.1905]
[1641064800367,0.26,176.09,176.01,91.1905]
[1641064800567,1.79876405,176.1,176.01,91.1905]
[1641064800966,2.29876405,176.1,176.01,91.1905]
[1641064817818,1.79876405,176.1,176.01,91.1905]
[1641064818716,2.29876405,176.1,176.01,91.1905]
[1641064820117,1.53876405,176.1,176.01,91.1905]
[1641064820920,2.03876405,176.1,176.01,91.1905]